fUSD/lending_fUSD_20250606
["ID","MTS","AMOUNT","RATE_DAILY","PERIOD"]
[364767351,1749234641113,-588.02,0.00027397,5]
[364767353,1749234641122,-480.0,0.00027397,5]
[364767354,1749234641131,-480.0,0.00027397,5]
[364767356,1749234641142,-940.733397,0.00027397,5]
[364767358,1749234641151,-987.07,0.00027397,5]
[364767360,1749234641160,-480.0,0.00027397,5]
[364767362,1749234641169,-480.0,0.00027397,5]
[364767364,1749234641179,-480.0,0.00027397,5]
[364767366,1749234641188,-625.82,0.00027397,5]
[364767367,1749234641198,-480.0,0.00027397,5]
[364767369,1749234641208,-480.0,0.00027397,5]
[364767371,1749234641218,-480.0,0.00027397,5]
[364767373,1749234641227,-480.0,0.00027397,5]
[364767375,1749234641236,-1299.303709,0.00027397,5]
[364767376,1749234641246,-480.0,0.00027397,5]
[364767377,1749234641255,-784.13,0.00027397,5]
[364767378,1749234641268,-480.0,0.00027397,5]
[364767379,1749234641278,-917.23,0.00027397,5]
[364767380,1749234641287,-480.01,0.00027397,5]
[364767381,1749234641297,-487.16,0.00027397,5]
[364767382,1749234641307,-480.0,0.00027397,5]
[364767383,1749234641316,-480.0,0.00027397,5]
[364767384,1749234641326,-682.32,0.00027397,5]
[364767385,1749234641335,-480.0,0.00027397,5]
[364767386,1749234641345,-480.0,0.00027397,5]
[364767387,1749234641355,-480.0,0.00027397,5]
[364767388,1749234641365,-480.0,0.00027397,5]
[364767390,1749234641375,-696.32,0.00027397,5]
[364767391,1749234641384,-480.0,0.00027397,5]
[364767393,1749234641394,-480.0,0.00027397,5]
[364767395,1749234641404,-480.0,0.00027397,5]
[364767397,1749234641415,-480.0,0.00027397,5]
[364767399,1749234641425,-480.0,0.00027397,5]
[364767401,1749234641435,-480.0,0.00027397,5]
[364767403,1749234641444,-321.65251791,0.00027397,5]
[364767405,1749234641454,-638.02,0.00027397,5]
[364767407,1749234641464,-179.134499,0.00027397,5]
[364767409,1749234641474,-480.0,0.00027397,5]
[364767411,1749234641484,-480.0,0.00027397,5]
[364767413,1749234641494,-480.0,0.00027397,5]
[364767415,1749234641504,-480.0,0.00027397,5]
[364767417,1749234641514,-480.0,0.00027397,5]
[364767419,1749234641524,-1436.13,0.00027397,5]
[364767421,1749234641533,-480.0,0.00027397,5]
[364767423,1749234641542,-480.0,0.00027397,5]
[364767425,1749234641552,-480.0,0.00027397,5]
[364767427,1749234641562,-480.0,0.00027397,5]
[364767429,1749234641572,-151.294171,0.00027397,5]
[364767431,1749234641581,-480.0,0.00027397,5]
[364767433,1749234641591,-480.0,0.00027397,5]
[364767435,1749234641602,-480.0,0.00027397,5]
[364767437,1749234641611,-740.16,0.00027397,5]
[364767439,1749234641621,-480.0,0.00027397,5]
[364767441,1749234641631,-691.25,0.00027397,5]
[364767443,1749234641640,-480.0,0.00027397,5]
[364767445,1749234641649,-480.0,0.00027397,5]
[364767447,1749234641659,-480.0,0.00027397,5]
[364767449,1749234641669,-480.0,0.00027397,5]
[364767451,1749234641678,-480.0,0.00027397,5]
[364767453,1749234641688,-480.0,0.00027397,5]
[364767455,1749234641698,-480.0,0.00027397,5]
[364767457,1749234641708,-480.0,0.00027397,5]
[364767459,1749234641717,-505.06,0.00027397,5]
[364767461,1749234641726,-445.57152634,0.00027397,5]
[364767463,1749234641736,-1258.95,0.00027397,5]
[364767465,1749234641746,-480.0,0.00027397,5]
[364767467,1749234641755,-480.0,0.00027397,5]
[364767469,1749234641764,-768.32,0.00027397,5]
[364767472,1749234641774,-756.63,0.00027397,5]
[364767474,1749234641783,-480.0,0.00027397,5]
[364767476,1749234641792,-1271.25,0.00027397,5]
[364767478,1749234641802,-480.0,0.00027397,5]
[364767480,1749234641811,-556.2,0.00027397,5]
[364767481,1749234641820,-480.0,0.00027397,2]
[364767483,1749234641830,-480.0,0.00027397,5]
[364767485,1749234641839,-834.74,0.00027397,5]
[364767487,1749234641849,-480.0,0.00027397,5]
[364767490,1749234641858,-480.0,0.00027397,5]
[364767492,1749234641868,-699.53,0.00027397,5]
[364767493,1749234641877,-480.0,0.00027397,5]
[364767495,1749234641886,-1113.05,0.00027397,5]
[364767497,1749234641896,-480.0,0.00027397,5]
[364767499,1749234641905,-766.43,0.00027397,5]
[364767501,1749234641914,-480.0,0.00027397,5]
[364767503,1749234641924,-480.0,0.00027397,5]
[364767506,1749234641934,-480.0,0.00027397,5]
[364767508,1749234641944,-249.23324593,0.00027397,5]
[364767510,1749234641953,-480.0,0.00027397,5]
[364767512,1749234641963,-800.15,0.00027397,5]
[364767514,1749234641973,-916.15,0.00027397,5]
[364767516,1749234641983,-480.0,0.00027397,5]
[364767518,1749234641992,-327.8008773,0.00027397,5]
[364767520,1749234642001,-480.0,0.00027397,5]
[364767522,1749234642011,-585.3,0.00027397,5]
[364767524,1749234642021,-314.73612683,0.00027397,5]
[364767526,1749234642030,-480.0,0.00027397,5]
[364767528,1749234642041,-660.59,0.00027397,5]
[364767530,1749234642054,-480.0,0.00027397,5]
[364767532,1749234642064,-480.0,0.00027397,5]
[364767534,1749234642074,-480.0,0.00027397,5]
[364767536,1749234642083,-480.0,0.00027397,5]
[364767538,1749234642092,-480.0,0.00027397,5]
[364767540,1749234642103,-778.45,0.00027397,5]
[364767542,1749234642113,-792.63,0.00027397,5]
[364767544,1749234642123,-480.0,0.00027397,5]
[364767546,1749234642133,-514.14,0.00027397,5]
[364767548,1749234642143,-1221.41,0.00027397,5]
[364767550,1749234642152,-1089.83,0.00027397,5]
[364767552,1749234642162,-480.0,0.00027397,5]
[364767554,1749234642172,-868.35,0.00027397,5]
[364767556,1749234642181,-1117.84,0.00027397,5]
[364767558,1749234642191,-521.19,0.00027397,5]
[364767560,1749234642200,-1000.0,0.00027397,2]
[364767562,1749234642211,-269.4399745,0.00027397,5]
[364767570,1749234642287,-210.5600255,0.00027397,5]
[364767573,1749234642298,-480.0,0.00027397,5]
[364767575,1749234642308,-135.94973361,0.00027397,5]
[364767700,1749234643415,-500.0,0.00027086,2]
[364767702,1749234643425,-500.0,0.00027086,2]
[364767704,1749234643435,-500.0,0.00027086,2]
[364767706,1749234643444,-500.0,0.00027086,2]
[364767708,1749234643454,-203.74683614,0.00027086,2]
[364767710,1749234643464,-500.0,0.00027086,2]
[364767712,1749234643474,-344.05026639,0.00027397,5]
[364767714,1749234643483,-480.0,0.00027397,5]
[364767716,1749234643493,-5782.75386835,0.00027397,5]
[364767801,1749234644306,-295.99920458,0.00027397,5]
[364767802,1749234644318,-608.65692707,0.00027397,5]
[364767803,1749234644328,-243.74580279,0.00027397,5]
[364767936,1749234645767,-236.25419721,0.00027397,5]
[364767938,1749234645777,-1350.03,0.00027397,5]
[364767940,1749234645787,-480.0,0.00027397,5]
[364767942,1749234645797,-570.82935401,0.00027397,5]
[364767944,1749234645806,-480.0,0.00027397,5]
[364767946,1749234645817,-720.59,0.00027397,5]
[364767948,1749234645826,-3676.42,0.00027397,5]
[364767950,1749234645836,-480.0,0.00027397,5]
[364767952,1749234645846,-2887.58,0.00027397,5]
[364767954,1749234645855,-480.0,0.00027397,5]
[364767956,1749234645865,-189.42276515,0.00027397,5]
[364767958,1749234645874,-166.15307668,0.00027397,5]
[364767960,1749234645885,-1854.24,0.00027397,5]
[364767962,1749234645895,-938.29,0.00027397,5]
[364767964,1749234645904,-1093.04,0.00027397,5]
[364767966,1749234645914,-597.15060695,0.00027397,5]
[364767969,1749234645933,-402.84939305,0.00027397,5]
[364767971,1749234645943,-195.40964291,0.00027397,5]
[364768041,1749234750636,150.0,0.0002,2]
[364768043,1749235256048,250.0,0.00019,2]
[364768044,1749235294260,678.0,0.00021,30]
[364768045,1749235350923,150.0,0.0002,2]
[364768046,1749235451380,2848.14,0.0002,2]
[364768047,1749235471576,150.0,0.0002,2]
[364768049,1749235549280,158.02,0.00013699,2]
[364768051,1749235591322,150.0,0.0002,2]
[364768058,1749235832063,-158.02,0.00020187,2]
[364768059,1749235832073,-151.0,0.00021386,2]
[364768060,1749235832083,-151.0,0.00021391,2]
[364768061,1749235832094,-533.27913237,0.00022787,2]
[364768062,1749235832103,-800.0,0.00022807,4]
[364768063,1749235832113,-86.70086763,0.00022807,2]
[364768072,1749235837853,-163.29913237,0.00022807,2]
[364768073,1749235837863,-1186.65,0.0002338,2]
[364768074,1749235837873,-1200.0,0.00024177,2]
[364768075,1749235837883,-500.0,0.00024178,2]
[364768076,1749235837892,-1000.0,0.00024178,2]
[364768077,1749235837901,-151.0,0.00024178,2]
[364768078,1749235837911,-1957.856,0.00024178,2]
[364768079,1749235837920,-800.0,0.00024178,2]
[364768080,1749235837930,-500.0,0.00024178,2]
[364768081,1749235837940,-800.0,0.00024178,2]
[364768082,1749235837950,-800.0,0.00024178,2]
[364768083,1749235837959,-500.0,0.00024178,2]
[364768084,1749235837968,-800.0,0.00024178,2]
[364768085,1749235837977,-500.0,0.00024178,2]
[364768086,1749235837987,-800.0,0.00024178,2]
[364768087,1749235837996,-511.4372162,0.00024178,2]
[364768088,1749235838005,-668.65185757,0.00024178,2]
[364768089,1749235838015,-800.0,0.00024178,2]
[364768090,1749235838024,-500.0,0.00024178,2]
[364768091,1749235838034,-151.0,0.00024178,2]
[364768092,1749235838043,-800.0,0.00024178,2]
[364768093,1749235838053,-500.0,0.00024178,2]
[364768094,1749235838063,-800.0,0.00024178,2]
[364768095,1749235838072,-500.0,0.00024178,2]
[364768096,1749235838082,-500.0,0.00024178,2]
[364768097,1749235838092,-800.0,0.00024178,2]
[364768098,1749235838101,-800.0,0.00024178,2]
[364768099,1749235838111,-500.0,0.00024178,2]
[364768100,1749235838120,-151.0,0.00024178,2]
[364768101,1749235838131,-800.0,0.00024178,2]
[364768102,1749235838140,-500.0,0.00024178,2]
[364768103,1749235838150,-151.0,0.00024178,2]
[364768104,1749235838159,-800.0,0.00024178,2]
[364768105,1749235838168,-500.0,0.00024178,2]
[364768106,1749235838179,-151.0,0.00024178,2]
[364768107,1749235838189,-800.0,0.00024178,2]
[364768108,1749235838199,-500.0,0.00024178,2]
[364768109,1749235838209,-800.0,0.00024178,2]
[364768110,1749235838219,-500.0,0.00024178,2]
[364768111,1749235838228,-151.0,0.00024178,2]
[364768112,1749235838238,-800.0,0.00024178,2]
[364768113,1749235838247,-500.0,0.00024178,2]
[364768114,1749235838257,-151.0,0.00024178,2]
[364768116,1749235838266,-151.0,0.00024178,2]
[364768117,1749235838275,-500.0,0.00024178,2]
[364768118,1749235838285,-151.0,0.00024178,2]
[364768119,1749235838295,-500.0,0.00024178,2]
[364768120,1749235838304,-151.0,0.00024178,2]
[364768122,1749235838314,-500.0,0.00024178,2]
[364768123,1749235838323,-151.0,0.00024178,2]
[364768124,1749235838332,-500.0,0.00024178,2]
[364768125,1749235838341,-500.0,0.00024178,2]
[364768126,1749235838351,-500.0,0.00024178,2]
[364768127,1749235838360,-500.0,0.00024178,2]
[364768128,1749235838369,-207.4,0.00024178,2]
[364768129,1749235838378,-500.0,0.00024178,2]
[364768130,1749235838387,-500.0,0.00024178,2]
[364768131,1749235838397,-500.0,0.00024178,2]
[364768132,1749235838406,-500.0,0.00024178,2]
[364768133,1749235838424,-500.0,0.00024178,2]
[364768134,1749235838435,-500.0,0.00024178,2]
[364768135,1749235838445,-500.0,0.00024178,2]
[364768136,1749235838454,-500.0,0.00024178,2]
[364768137,1749235838463,-500.0,0.00024178,2]
[364768138,1749235838472,-500.0,0.00024178,2]
[364768139,1749235838482,-300.0,0.00024178,2]
[364768140,1749235838491,-300.0,0.00024178,2]
[364768141,1749235838501,-300.0,0.00024178,2]
[364768142,1749235838510,-300.0,0.00024178,2]
[364768143,1749235838519,-300.0,0.00024178,2]
[364768144,1749235838529,-300.0,0.00024178,2]
[364768145,1749235838538,-300.0,0.00024178,2]
[364768146,1749235838547,-300.0,0.00024178,2]
[364768147,1749235838556,-300.0,0.00024178,2]
[364768148,1749235838569,-300.0,0.00024178,2]
[364768149,1749235838583,-300.0,0.00024178,2]
[364768150,1749235838592,-300.0,0.00024178,2]
[364768151,1749235838602,-300.0,0.00024178,2]
[364768152,1749235838611,-300.0,0.00024178,2]
[364768153,1749235838621,-300.0,0.00024178,2]
[364768154,1749235838631,-300.0,0.00024178,2]
[364768155,1749235838640,-1000.0,0.00024193,2]
[364768156,1749235838649,-500.0,0.000242,2]
[364768157,1749235838658,-500.0,0.000242,2]
[364768158,1749235838668,-1957.85600001,0.00024233,2]
[364768159,1749235838678,-1000.0,0.00024683,2]
[364768160,1749235838695,-1000.0,0.0002469,2]
[364768161,1749235838705,-151.0,0.00024726,2]
[364768162,1749235838714,-151.0,0.00024726,2]
[364768163,1749235838725,-1000.0,0.00024748,2]
[364768164,1749235838735,-150.0,0.00024893,2]
[364768165,1749235838745,-150.0,0.00024976,2]
[364768166,1749235838755,-314.53,0.00025108,2]
[364768167,1749235838765,-171.02,0.00025151,2]
[364768168,1749235838775,-250.0,0.00025152,2]
[364768169,1749235838784,-150.0,0.00025158,2]
[364768170,1749235838794,-853.26,0.00025173,2]
[364768171,1749235838803,-150.0,0.00025189,2]
[364768172,1749235838814,-1500.0,0.00025296,2]
[364768174,1749235838824,-156.46,0.0002531,2]
[364768175,1749235838833,-200.0,0.00025333,2]
[364768177,1749235838845,-150.0,0.00025382,2]
[364768178,1749235838855,-552.61,0.00025407,30]
[364768179,1749235838864,-204.0,0.00025434,2]
[364768180,1749235838873,-243.83308748,0.000255,2]
[364768181,1749235838883,-156.587,0.00025547,2]
[364768182,1749235838892,-693.3919763,0.00025547,2]
[364768183,1749235838902,-215.0738,0.00025547,2]
[364768184,1749235838911,-150.0,0.00025566,2]
[364768185,1749235838921,-1186.65,0.00025644,2]
[364768186,1749235838930,-1000.0,0.000257,2]
[364768187,1749235838940,-28617.0,0.000257,2]
[364768188,1749235838950,-196.61,0.00025717,2]
[364768189,1749235838960,-1000.0,0.00025724,2]
[364768190,1749235838970,-150.0,0.00025766,2]
[364768191,1749235838979,-1000.0,0.00025806,2]
[364768192,1749235838989,-2000.0,0.00025844,2]
[364768193,1749235838999,-150.0,0.00025844,2]
[364768194,1749235839010,-1000.0,0.00025871,2]
[364768195,1749235839019,-907.91363977,0.000259,14]
[364768196,1749235839028,-23900.0,0.00026017,2]
[364768197,1749235839038,-382.49554745,0.0002605,2]
[364768198,1749235839047,-150.0,0.00026124,2]
[364768199,1749235839057,-150.0,0.00026129,7]
[364768200,1749235839066,-150.0,0.00026261,2]
[364768201,1749235839075,-306.28415229,0.00026292,2]
[364768202,1749235839085,-2000.0,0.000263,2]
[364768203,1749235839095,-907.91363961,0.00026314,14]
[364768204,1749235839104,-1680.0,0.00026334,2]
[364768205,1749235839113,-2500.0,0.00026392,2]
[364768206,1749235839123,-150.0,0.00026396,2]
[364768207,1749235839132,-200.0,0.000264,2]
[364768208,1749235839141,-5562.0,0.000264,3]
[364768209,1749235839150,-150.0,0.00026422,2]
[364768210,1749235839159,-1000.0,0.0002647,2]
[364768211,1749235839169,-168.26,0.00026488,2]
[364768212,1749235839178,-617.50445255,0.00026536,2]
[364768213,1749235839188,-150.0,0.00026565,2]
[364768214,1749235839197,-150.0,0.00026595,2]
[364768215,1749235839206,-271.6935,0.000266,2]
[364768216,1749235839216,-216.5144967,0.00026608,2]
[364768217,1749235839225,-158.02,0.00026676,2]
[364768218,1749235839238,-907.91363961,0.00026728,15]
[364768219,1749235839247,-800.0,0.00026786,4]
[364768220,1749235839256,-800.0,0.000268,9]
[364768221,1749235839266,-150.0,0.00026831,2]
[364768222,1749235839275,-150.0,0.00026844,2]
[364768223,1749235839285,-150.0,0.00026852,2]
[364768224,1749235839294,-150.0,0.00026867,2]
[364768225,1749235839303,-1000.0,0.0002688,2]
[364768226,1749235839312,-1600.0,0.000269,9]
[364768227,1749235839322,-162.380719,0.00026916,2]
[364768228,1749235839331,-501.44057371,0.00026916,2]
[364768229,1749235839341,-223.0315306,0.00026916,2]
[364768230,1749235839351,-1037.0,0.00026917,2]
[364768231,1749235839361,-150.0,0.00026929,2]
[364768232,1749235839370,-3000.0,0.0002694,2]
[364768233,1749235839379,-189.30520402,0.00026986,2]
[364768234,1749235839388,-6750.0496,0.00026987,2]
[364768235,1749235839398,-227.6154,0.00026987,2]
[364768236,1749235839407,-2030.5057,0.00026987,2]
[364768237,1749235839416,-2081.3973,0.00026987,2]
[364768238,1749235839426,-150.0,0.00026991,2]
[364768239,1749235839435,-6156.09488501,0.00026996,2]
[364768240,1749235839445,-2500.0,0.00026997,2]
[364768241,1749235839454,-164.08632328,0.00026998,2]
[364768242,1749235839463,-4205.86472388,0.00026998,2]
[364768243,1749235839473,-164.51267782,0.00026998,2]
[364768244,1749235839482,-5562.0,0.00027,5]
[364768245,1749235839493,-6156.09488497,0.00027048,2]
[364768246,1749235839502,-4205.86472383,0.00027049,2]
[364768247,1749235839512,-500.0,0.00027087,2]
[364768248,1749235839521,-36058.946,0.00027087,2]
[364768249,1749235839531,-1000.0,0.00027087,2]
[364768250,1749235839540,-1436.62148655,0.00027096,10]
[364768251,1749235839550,-187582.5771,0.00027097,2]
[364768252,1749235839559,-1000.0,0.00027098,2]
[364768253,1749235839569,-6156.09488497,0.00027099,2]
[364768254,1749235839579,-4205.86472383,0.00027101,2]
[364768255,1749235839588,-150.0,0.00027132,2]
[364768256,1749235839599,-907.91363961,0.00027141,16]
[364768257,1749235839609,-6156.09488497,0.00027151,2]
[364768258,1749235839619,-4205.86472383,0.00027152,2]
[364768259,1749235839629,-6156.09488497,0.00027203,2]
[364768260,1749235839639,-4205.86472383,0.00027204,2]
[364768261,1749235839650,-150.0,0.00027213,2]
[364768262,1749235839660,-171.02,0.00027247,2]
[364768264,1749235839669,-6156.09488497,0.00027254,2]
[364768265,1749235839679,-4205.86472383,0.00027255,2]
[364768266,1749235839692,-1446.73177131,0.0002727,2]
[364768267,1749235839701,-800.0,0.00027279,4]
[364768268,1749235839711,-250.0,0.00027279,2]
[364768269,1749235839720,-5000.0,0.00027297,2]
[364768270,1749235839730,-161.5374211,0.00027297,2]
[364768271,1749235839740,-749.71695282,0.00027297,2]
[364768272,1749235839750,-414.41905641,0.00027297,2]
[364768273,1749235839760,-6156.09488497,0.00027306,2]
[364768274,1749235839770,-4205.86472383,0.00027307,2]
[364768275,1749235839780,-971.17932329,0.00027343,2]
[364768276,1749235839789,-6156.09488497,0.00027358,2]
[364768277,1749235839799,-150.0,0.00027358,2]
[364768278,1749235839808,-4205.86472383,0.00027358,2]
[364768279,1749235839819,-414.41905639,0.00027369,2]
[364768280,1749235839828,-452.787078,0.00027371,6]
[364768281,1749235839838,-500.0,0.00027373,2]
[364768282,1749235839848,-500.0,0.00027373,2]
[364768283,1749235839857,-89029.081118,0.00027377,2]
[364768284,1749235839866,-136162.124063,0.00027387,2]
[364768285,1749235839876,-273.28650428,0.00027387,2]
[364768286,1749235839885,-150.0,0.00027391,2]
[364768287,1749235839894,-521.92494463,0.00027397,5]
[364768288,1749235839904,-480.0,0.00027397,5]
[364768289,1749235839913,-1062.011773,0.00027397,5]
[364768290,1749235839922,-1140.37651274,0.00027397,2]
[364768291,1749235839932,-200.0,0.00027397,2]
[364768292,1749235839942,-1179.930096,0.00027397,5]
[364768293,1749235839952,-625.76162546,0.00027397,5]
[364768294,1749235839961,-600.0,0.00027397,30]
[364768295,1749235839970,-477.84245478,0.00027397,5]
[364768296,1749235839980,-480.0,0.00027397,5]
[364768297,1749235839989,-480.0,0.00027397,5]
[364768298,1749235839998,-480.0,0.00027397,5]
[364768299,1749235840008,-480.0,0.00027397,5]
[364768300,1749235840017,-480.0,0.00027397,5]
[364768301,1749235840026,-480.0,0.00027397,5]
[364768302,1749235840035,-480.0,0.00027397,5]
[364768303,1749235840045,-480.0,0.00027397,5]
[364768304,1749235840054,-480.0,0.00027397,5]
[364768305,1749235840063,-422.92355309,0.00027397,5]
[364768306,1749235840073,-189.54832,0.00027397,5]
[364768307,1749235840082,-480.0,0.00027397,5]
[364768308,1749235840094,-964.33,0.00027397,5]
[364768309,1749235840103,-480.0,0.00027397,5]
[364768310,1749235840113,-480.0,0.00027397,5]
[364768311,1749235840122,-500.0,0.00027397,2]
[364768312,1749235840131,-500.0,0.00027397,2]
[364768313,1749235840141,-500.0,0.00027397,2]
[364768314,1749235840150,-480.0,0.00027397,5]
[364768315,1749235840159,-480.0,0.00027397,5]
[364768316,1749235840169,-480.0,0.00027397,5]
[364768317,1749235840179,-480.0,0.00027397,5]
[364768318,1749235840188,-508.62,0.00027397,5]
[364768319,1749235840198,-480.0,0.00027397,5]
[364768320,1749235840208,-348.052978,0.00027397,5]
[364768321,1749235840217,-480.0,0.00027397,5]
[364768322,1749235840227,-690.93,0.00027397,5]
[364768323,1749235840236,-480.0,0.00027397,5]
[364768324,1749235840245,-480.0,0.00027397,5]
[364768325,1749235840254,-480.0,0.00027397,5]
[364768326,1749235840263,-480.0,0.00027397,5]
[364768327,1749235840272,-480.0,0.00027397,5]
[364768328,1749235840282,-480.0,0.00027397,5]
[364768329,1749235840291,-480.0,0.00027397,5]
[364768330,1749235840300,-480.0,0.00027397,5]
[364768331,1749235840310,-480.0,0.00027397,5]
[364768332,1749235840453,-208.677067,0.00027397,5]
[364768333,1749235840517,-480.0,0.00027397,5]
[364768334,1749235840532,-460.0,0.00027397,5]
[364768335,1749235840542,-480.0,0.00027397,5]
[364768336,1749235840552,-480.0,0.00027397,5]
[364768337,1749235840564,-571.03,0.00027397,5]
[364768338,1749235840574,-500.0,0.00027397,5]
[364768339,1749235840584,-480.0,0.00027397,5]
[364768340,1749235840594,-480.0,0.00027397,5]
[364768341,1749235840603,-480.0,0.00027397,5]
[364768342,1749235840612,-480.0,0.00027397,5]
[364768343,1749235840622,-480.0,0.00027397,5]
[364768344,1749235840633,-480.0,0.00027397,5]
[364768345,1749235840642,-609.55,0.00027397,5]
[364768346,1749235840652,-330.15579232,0.00027397,5]
[364768347,1749235840662,-480.0,0.00027397,5]
[364768348,1749235840673,-480.0,0.00027397,5]
[364768349,1749235840685,-480.0,0.00027397,5]
[364768350,1749235840702,-480.0,0.00027397,5]
[364768351,1749235840715,-480.0,0.00027397,5]
[364768352,1749235840727,-418.1271711,0.00027397,5]
[364768353,1749235840737,-480.0,0.00027397,5]
[364768354,1749235840748,-480.0,0.00027397,5]
[364768355,1749235840758,-480.0,0.00027397,5]
[364768356,1749235840769,-480.0,0.00027397,5]
[364768357,1749235840779,-480.0,0.00027397,5]
[364768359,1749235840788,-480.0,0.00027397,5]
[364768361,1749235840798,-480.0,0.00027397,5]
[364768362,1749235840807,-480.0,0.00027397,5]
[364768363,1749235840817,-480.0,0.00027397,5]
[364768364,1749235840827,-480.0,0.00027397,5]
[364768365,1749235840836,-480.0,0.00027397,5]
[364768366,1749235840846,-200.0,0.00027397,2]
[364768367,1749235840855,-1793.96,0.00027397,5]
[364768368,1749235840865,-151.0,0.00027397,7]
[364768369,1749235840875,-551.38,0.00027397,5]
[364768370,1749235840884,-480.0,0.00027397,5]
[364768371,1749235840894,-546.7,0.00027397,5]
[364768372,1749235840904,-480.0,0.00027397,5]
[364768373,1749235840914,-480.0,0.00027397,5]
[364768374,1749235840923,-480.0,0.00027397,5]
[364768375,1749235840933,-151.0,0.00027397,7]
[364768376,1749235840943,-1354.37,0.00027397,5]
[364768377,1749235840952,-480.0,0.00027397,5]
[364768378,1749235840962,-480.0,0.00027397,5]
[364768379,1749235840971,-480.0,0.00027397,5]
[364768380,1749235840981,-584.41,0.00027397,5]
[364768381,1749235840992,-480.0,0.00027397,5]
[364768382,1749235841001,-1112.34,0.00027397,5]
[364768383,1749235841012,-480.0,0.00027397,5]
[364768384,1749235841022,-480.0,0.00027397,5]
[364768385,1749235841031,-543.84,0.00027397,5]
[364768386,1749235841040,-737.63,0.00027397,5]
[364768387,1749235841050,-480.0,0.00027397,5]
[364768388,1749235841061,-670.01,0.00027397,5]
[364768389,1749235841071,-480.0,0.00027397,5]
[364768390,1749235841080,-857.5,0.00027397,5]
[364768391,1749235841090,-480.0,0.00027397,5]
[364768392,1749235841101,-1211.97,0.00027397,5]
[364768393,1749235841110,-480.0,0.00027397,5]
[364768394,1749235841119,-480.0,0.00027397,5]
[364768395,1749235841129,-480.0,0.00027397,5]
[364768396,1749235841139,-151.0,0.00027397,7]
[364768397,1749235841148,-1137.45,0.00027397,5]
[364768398,1749235841158,-480.0,0.00027397,5]
[364768399,1749235841167,-151.0,0.00027397,7]
[364768400,1749235841177,-480.0,0.00027397,5]
[364768401,1749235841188,-1345.48,0.00027397,5]
[364768402,1749235841198,-540.28,0.00027397,5]
[364768403,1749235841208,-480.0,0.00027397,5]
[364768404,1749235841218,-480.0,0.00027397,5]
[364768405,1749235841229,-480.0,0.00027397,5]
[364768406,1749235841238,-523.81,0.00027397,5]
[364768407,1749235841249,-890.72,0.00027397,5]
[364768408,1749235841259,-480.0,0.00027397,5]
[364768409,1749235841268,-480.0,0.00027397,5]
[364768410,1749235841278,-480.0,0.00027397,5]
[364768411,1749235841288,-480.0,0.00027397,5]
[364768412,1749235841298,-151.0,0.00027397,7]
[364768413,1749235841309,-480.0,0.00027397,5]
[364768414,1749235841318,-705.7,0.00027397,5]
[364768415,1749235841328,-772.83,0.00027397,5]
[364768416,1749235841339,-458.03305328,0.00027397,5]
[364768417,1749235841351,-480.0,0.00027397,5]